fUST/lending_fUST_20240430
["ID","MTS","AMOUNT","RATE_DAILY","PERIOD"]
[324972812,1714480304600,-928.37334268,0.00038082,7]
[324972813,1714480304609,-3236.91504846,0.00038082,7]
[324972814,1714480304619,-505.82184902,0.00038082,7]
[324972815,1714480304628,-1780.20431423,0.00038082,7]
[324972816,1714480304637,-577.90187551,0.00038082,7]
[324972817,1714480304646,-1137.40695924,0.00038082,7]
[324972818,1714480304654,-933.53459346,0.00038082,7]
[324972819,1714480304664,-1628.70197074,0.00038082,7]
[324972820,1714480304674,-556.48706372,0.00038082,7]
[324972821,1714480304687,-611.55665271,0.00038082,7]
[324972822,1714480304697,-3242.46700869,0.00038082,7]
[324972823,1714480304706,-2128.22979722,0.00038082,7]
[324972824,1714480304716,-800.20214686,0.00038082,7]
[324972825,1714480304726,-1321.07009862,0.00038082,7]
[324972826,1714480304735,-518.4611198,0.00038082,7]
[324972827,1714480304744,-1525.12415699,0.00038082,7]
[324972828,1714480304754,-654.37813179,0.00038082,7]
[324972829,1714480304764,-545.87246868,0.00038082,7]
[324972830,1714480304774,-1274.15811253,0.00038082,7]
[324972831,1714480304783,-1762.02783727,0.00038082,7]
[324972832,1714480304792,-639.86878893,0.00038082,7]
[324972833,1714480304802,-555.08541389,0.00038082,7]
[324972834,1714480304811,-1774.46769105,0.00038082,7]
[324972835,1714480304820,-1354.75117414,0.00038082,7]
[324972836,1714480304833,-3447.37173178,0.00038082,7]
[324972837,1714480304842,-786.99056883,0.00038082,7]
[324972838,1714480304851,-707.69798627,0.00038082,7]
[324972839,1714480304861,-569.85005693,0.00038082,7]
[324972840,1714480304871,-751.69121288,0.00038082,7]
[324972841,1714480304880,-1391.89716897,0.00038082,7]
[324972842,1714480304890,-1469.50350134,0.00038082,7]
[324972843,1714480304900,-485.68973665,0.00038105,7]
[324972844,1714480304910,-154.62751969,0.00038213,7]
[324972845,1714480304920,-178.979253,0.00038245,2]
[324972846,1714480304929,-495.929683,0.00038245,2]
[324972847,1714480304940,-153.21482082,0.00038255,7]
[324972848,1714480304949,-154.62751969,0.00038264,7]
[324972849,1714480304959,-200.0,0.00038344,120]
[324972850,1714480304969,-153.89214873,0.00038396,7]
[324972851,1714480304979,-1255.4,0.0003863,14]
[324972852,1714480304988,-423.0,0.0003863,14]
[324972853,1714480304998,-153.21482082,0.00038729,7]
[324972854,1714480305008,-157.73975448,0.00038873,7]
[324972855,1714480305018,-153.21482082,0.0003893,7]
[324972856,1714480305027,-539.27,0.0003898,35]
[324972857,1714480305037,-535.0,0.0003899,35]
[324972858,1714480305046,-159.00286188,0.00039,120]
[324972859,1714480305056,-485.68973665,0.00039119,7]
[324972860,1714480305065,-485.68973665,0.00039178,7]
[324972861,1714480305079,-601.99885445,0.00039389,9]
[324972862,1714480305088,-163526.07210787,0.000394,2]
[324972863,1714480305102,-3562.454,0.000394,2]
[324972864,1714480305113,-1490.5,0.000394,2]
[324972866,1714480982118,1323.10943244,9.999e-05,2]
[324972867,1714481210862,2232.99397584,9.999e-05,2]
[324972885,1714481431845,-1102.5911937,0.00017152,2]
[324972886,1714481431855,-3051.21388193,0.00017153,2]
[324972887,1714481431864,-24900.0,0.00017154,2]
[324972888,1714481431873,-464.376852,0.00017734,2]
[324972889,1714481431882,-1394.4782305,0.00017889,2]
[324972890,1714481431891,-166.666666,0.00018071,2]
[324972891,1714481431900,-2748.5895359,0.00018394,2]
[324972892,1714481431910,-350.98391748,0.000189,2]
[324972893,1714481431919,-189.03839214,0.00019799,2]
[324972894,1714481431928,-2000.0,0.000199,2]
[324972895,1714481431938,-195.80806951,0.00019998,2]
[324972896,1714481431947,-157.80708891,0.00019998,2]
[324972897,1714481431956,-730.61014924,0.00019998,2]
[324972898,1714481432084,-355.96806476,0.00019998,2]
[324972899,1714481432124,-497.39509606,0.00019998,2]
[324972900,1714481432134,-154.9402763,0.00019998,2]
[324972901,1714481432144,-155.04940114,0.00019998,2]
[324972902,1714481432153,-154.98114259,0.00019998,2]
[324972903,1714481432163,-275.71,0.00019998,2]
[324972904,1714481432174,-190.59605249,0.00019998,2]
[324972905,1714481432184,-520.45497619,0.00019998,2]
[324972906,1714481432193,-514.30635662,0.00019998,2]
[324972907,1714481432202,-67426.19859378,0.0002,2]
[324972908,1714481432211,-33600.27757113,0.0002,2]
[324972912,1714481438022,-493.94552814,0.00017153,2]
[324972913,1714481438196,-15053.79999979,0.00017153,2]
[324973232,1714481447596,-612.5,0.00017153,2]
[324973692,1714482055004,1102.5911937,9.999e-05,2]
[324973694,1714482339474,9664.73777272,9.999e-05,2]
[324973695,1714482424493,6985.82250951,9.999e-05,2]
[324973696,1714482471541,5155.83419794,9.999e-05,2]
[324973697,1714482498498,1236.51501763,9.999e-05,2]
[324973698,1714482501367,2084.4976817,9.999e-05,2]
[324973699,1714482503489,1698.59708148,9.999e-05,2]
[324973700,1714482519284,754.64789264,9.999e-05,2]
[324973701,1714482552144,-312.8990348,0.00012498,2]
[324973702,1714482555294,1329.4624319,9.999e-05,2]
[324973703,1714482564157,2807.5535999,9.999e-05,2]
[324973704,1714482577322,866.35900588,9.999e-05,2]
[324973705,1714482595383,2084.4976817,9.999e-05,2]
[324973706,1714482609297,2084.11032454,9.999e-05,2]
[324973707,1714482631477,2084.30400312,9.999e-05,2]
[324973715,1714482632214,-261.55097712,0.00012498,2]
[324973716,1714482632224,-379.60471996,0.00012499,2]
[324973752,1714482638300,-2671.60916197,0.00012499,2]
[324973754,1714482638310,-5310.67080676,0.000125,2]
[324973762,1714482638451,-397.06962907,0.000125,2]
[324973764,1714482638460,-8646.03037112,0.00016,2]
[324974087,1714482655302,2084.30400312,9.999e-05,2]
[324974089,1714482713683,196.34286714,9.999e-05,2]
[324974090,1714482733806,2084.4976817,9.999e-05,2]
[324974091,1714482747805,2084.4976817,9.999e-05,2]
[324974092,1714482763805,1046.35493804,9.999e-05,2]
[324974093,1714482806566,4885.9497253,9.999e-05,2]
[324974099,1714483112434,574.45001192,9.999e-05,2]
[324974412,1714483128621,2727.80241153,9.999e-05,2]
[324974454,1714483135912,1042.2144242,9.999e-05,2]
[324974464,1714483136424,2626.7215223,9.999e-05,2]
[324974864,1714483214408,226.86013705,9.999e-05,2]
[324974865,1714483217232,196.34286714,9.999e-05,2]
[324974866,1714483221789,314.81328207,9.999e-05,2]
[324974867,1714483267178,683.32776114,9.999e-05,2]
[324974869,1714483506671,5258.09033404,9.999e-05,2]
[324974870,1714483535965,574.45001192,9.999e-05,2]
[324974882,1714483833313,-6938.27266148,0.00015133,2]
[324974884,1714483833323,-3051.21388193,0.00015134,2]
[324974886,1714483833332,-574.45001192,0.00015134,2]
[324974887,1714483833341,-232.188426,0.00015143,2]
[324974888,1714483833350,-6955.88069151,0.00015564,2]
[324974889,1714483833363,-208.03748241,0.00015565,2]
[324974890,1714483833372,-24900.0,0.00015566,2]
[324974891,1714483833380,-7671.58411414,0.00016,2]
[324974896,1714483838364,-9127.64526376,0.00016,2]
[324974933,1714483840885,-340.0,0.00016,2]
[324974979,1714483843713,-4460.80601657,0.00016,2]
[324974981,1714483843722,-231.18152609,0.0001655,2]
[324974983,1714483843731,-683.1495983,0.00016556,2]
[324974984,1714483843741,-155.642877,0.00016556,2]
[324974986,1714483843751,-472.68114332,0.0001656,2]
[324974988,1714483843760,-242.39245323,0.0001656,2]
[324974990,1714483843774,-648.24701942,0.00016562,2]
[324974992,1714483843783,-324.7272653,0.00016565,2]
[324974994,1714483843792,-890.802326,0.00016565,2]
[324974996,1714483843801,-164.0768642,0.00016565,2]
[324974999,1714483843812,-1203.25513556,0.00016565,2]
[324975000,1714483843821,-903.46440735,0.00016566,2]
[324975002,1714483843830,-584.9731958,0.000189,2]
[324975004,1714483843839,-549.92372763,0.000199,2]
[324975006,1714483843851,-2000.0,0.000199,2]
[324975008,1714483843862,-594.80628541,0.000199,2]
[324975010,1714483843876,-875.73,0.0001999,3]
[324975013,1714483843885,-437.86,0.0001999,3]
[324975016,1714483843894,-218.93,0.0001999,3]
[324975019,1714483843904,-155.08097712,0.00019998,2]
[324975023,1714483843913,-185.81629862,0.00019998,2]
[324975025,1714483843922,-178.10195469,0.00019998,2]
[324975027,1714483843931,-2588.41116025,0.00019998,2]
[324975028,1714483843940,-309.61300308,0.00019998,2]
[324975030,1714483843949,-193.65224844,0.00019998,2]
[324975032,1714483843958,-1676.30195278,0.00019998,2]
[324975034,1714483843968,-189.3964787,0.00019998,2]
[324975036,1714483843977,-717.86575868,0.00019998,2]
[324975038,1714483843986,-1712.22652709,0.00019998,2]
[324975040,1714483843995,-312.89591059,0.00019998,2]
[324975042,1714483844005,-381.95389996,0.00019998,2]
[324975044,1714483844013,-372.87562938,0.00019998,2]
[324975046,1714483844023,-354.96876268,0.00019999,2]
[324975048,1714483844032,-180.66138684,0.00019999,2]
[324975050,1714483844042,-422.99435536,0.00019999,2]
[324975052,1714483844051,-5011.27812256,0.0002,2]
[324975056,1714483844078,-0.00069971,0.0002,2]
[324975476,1714484514730,574.45001192,9.999e-05,2]
[324975477,1714484748720,3051.21388193,9.999e-05,2]
[324975479,1714484965139,574.45001192,9.999e-05,2]
[324975530,1714485044111,-574.45001192,0.00016398,2]
[324975532,1714485044120,-232.188426,0.00016399,2]
[324975534,1714485044129,-166.250462,0.00016399,2]
[324975535,1714485044139,-1891.97802376,0.00017417,2]
[324975537,1714485044153,-589.53011534,0.00017418,2]
[324975539,1714485044163,-379.24165137,0.00017419,2]
[324975541,1714485044172,-17252.14132379,0.0001742,2]
[324975858,1714485663783,574.45001192,9.999e-05,2]
[324975860,1714486109072,520.52223815,9.999e-05,2]
[324975861,1714486181873,574.45001192,9.999e-05,2]
[324975862,1714486183433,379.51472742,9.999e-05,2]
[324975903,1714486233642,-24900.0,0.0001619,2]
[324975904,1714486233652,-160.17143125,0.00016202,2]
[324975905,1714486233662,-186.5805567,0.00016302,2]
[324975906,1714486233679,-164.885654,0.00016381,2]
[324975907,1714486233689,-1138.221058,0.00017,2]
[324975908,1714486233698,-515.95483356,0.00017099,2]
[324975909,1714486233707,-18000.02949539,0.00017192,2]
[324975910,1714486233716,-1891.97802376,0.00017193,2]
[324975911,1714486233725,-589.53011534,0.00017193,2]
[324975912,1714486233734,-574.45001192,0.00017193,2]
[324975913,1714486233743,-200.77637646,0.00017193,2]
[324975914,1714486233752,-275.71,0.00017194,2]
[324975915,1714486233762,-3184.61081555,0.00017196,2]
[324975916,1714486233771,-497.39509606,0.00017196,2]
[324975917,1714486233780,-154.9402763,0.00017196,2]
[324975918,1714486233790,-155.04940114,0.00017196,2]
[324975919,1714486233799,-154.98114259,0.00017196,2]
[324975920,1714486233808,-190.59605249,0.00017196,2]
[324975921,1714486233818,-520.38771423,0.00017196,2]
[324975922,1714486233827,-514.30635662,0.00017196,2]
[324975923,1714486233836,-355.96806476,0.00017197,2]
[324975924,1714486233845,-1902.3019495,0.00017214,2]
[324975925,1714486233854,-1000.0,0.000175,2]
[324975926,1714486233864,-1458.73300009,0.0001765,2]
[324975927,1714486233873,-1000.0,0.00018,2]
[324975928,1714486233882,-392.65173522,0.00018097,2]
[324975929,1714486233891,-157.80708891,0.00018195,2]
[324975930,1714486233900,-730.61014924,0.00018195,2]
[324975931,1714486233910,-1000.0,0.000185,2]
[324975932,1714486233925,-154.86062544,0.00018726,2]
[324975933,1714486233934,-237.64873836,0.00018726,2]
[324975934,1714486233943,-265.62372421,0.00018726,2]
[324975935,1714486233952,-155.05504485,0.00018727,2]
[324975936,1714486233961,-3000.0,0.00018739,2]
[324975937,1714486233970,-600.0,0.000189,2]
[324975938,1714486233979,-906.64108536,0.000189,2]
[324975939,1714486233988,-1000.0,0.00019,2]
[324975940,1714486233998,-160.453388,0.00019178,2]
[324975941,1714486234007,-1000.0,0.000195,2]
[324975942,1714486234017,-155.58236344,0.00019799,2]
[324975943,1714486234026,-475.84502836,0.000198,2]
[324975944,1714486234036,-620.31,0.0001989,3]
[324975945,1714486234046,-1000.0,0.000199,2]
[324975946,1714486234055,-1000.0,0.000199,3]
[324975947,1714486234065,-44444.0,0.000199,2]
[324975948,1714486234075,-151.0,0.000199,2]
[324975949,1714486234084,-495.942764,0.000199,2]
[324975950,1714486234094,-495.942764,0.000199,2]
[324975951,1714486234103,-151.0,0.000199,2]
[324975952,1714486234114,-151.0,0.000199,2]
[324975953,1714486234124,-347.529022,0.000199,2]
[324975954,1714486234133,-347.529022,0.000199,2]
[324975955,1714486234142,-228.97102988,0.000199,2]
[324975956,1714486234152,-288.816702,0.000199,2]
[324975957,1714486234161,-288.816702,0.000199,2]
[324975958,1714486234175,-151.0,0.000199,2]
[324975959,1714486234184,-151.0,0.000199,2]
[324975960,1714486234194,-1161.125325,0.000199,2]
[324975961,1714486234203,-301.142701,0.000199,2]
[324975962,1714486234213,-1161.125325,0.000199,2]
[324975963,1714486234223,-301.142701,0.000199,2]
[324975964,1714486234234,-151.068906,0.000199,2]
[324975965,1714486234243,-151.0,0.000199,2]
[324975966,1714486234253,-160.103392,0.000199,2]
[324975967,1714486234263,-151.0,0.000199,2]
[324975968,1714486234274,-151.0,0.000199,2]
[324975969,1714486234284,-375.99449,0.000199,2]
[324975970,1714486234294,-375.99449,0.000199,2]
[324975971,1714486234303,-203.077711,0.000199,2]
[324975972,1714486234313,-203.077711,0.000199,2]
[324975973,1714486234322,-187.349337,0.000199,2]
[324975974,1714486234332,-187.349337,0.000199,2]
[324975975,1714486234342,-636.666009,0.000199,2]
[324975976,1714486234351,-151.0,0.000199,2]
[324975977,1714486234361,-151.293733,0.000199,2]
[324975978,1714486234372,-636.666009,0.000199,2]
[324975979,1714486234559,-2059.872466,0.000199,2]
[324975980,1714486234570,-151.0,0.000199,2]
[324975981,1714486234579,-151.0,0.000199,2]
[324975982,1714486234589,-635.908055,0.000199,2]
[324975983,1714486234599,-2059.872466,0.000199,2]
[324975984,1714486234609,-635.908055,0.000199,2]
[324975985,1714486234619,-151.0,0.000199,2]
[324975986,1714486234628,-151.0,0.000199,2]
[324975987,1714486234637,-635.908055,0.000199,2]
[324975988,1714486234647,-635.908055,0.000199,2]
[324975989,1714486234656,-1004.275604,0.000199,2]
[324975990,1714486234670,-1004.275604,0.000199,2]
[324975991,1714486234679,-186.357954,0.000199,2]
[324975992,1714486234689,-1004.275604,0.000199,2]
[324975993,1714486234698,-186.357954,0.000199,2]
[324975994,1714486234707,-1004.275604,0.000199,2]
[324975995,1714486234715,-186.357954,0.000199,2]
[324975996,1714486234724,-186.357954,0.000199,2]
[324975997,1714486234733,-151.0,0.000199,2]
[324975998,1714486234742,-151.0,0.000199,2]
[324975999,1714486234751,-151.0,0.000199,2]
[324976000,1714486234761,-151.0,0.000199,2]
[324976001,1714486234770,-151.0,0.000199,2]
[324976002,1714486234779,-152.172222,0.000199,2]
[324976003,1714486234789,-237.9832,0.000199,2]
[324976004,1714486234798,-731.089941,0.000199,2]
[324976005,1714486234807,-731.089941,0.000199,2]
[324976006,1714486234816,-731.089941,0.000199,2]
[324976007,1714486234825,-731.089941,0.000199,2]
[324976008,1714486234835,-731.089941,0.000199,2]
[324976009,1714486234844,-731.089941,0.000199,2]
[324976010,1714486234854,-731.089941,0.000199,2]
[324976011,1714486234863,-731.089941,0.000199,2]
[324976012,1714486234872,-160.0,0.00019985,2]
[324976013,1714486234883,-250.16112705,0.00019998,2]
[324976014,1714486234893,-1921.1882817,0.00019999,2]
[324976015,1714486234903,-1161.125325,0.00019999,2]
[324976016,1714486234912,-1161.125325,0.00019999,2]
[324976017,1714486234926,-152.107121,0.00019999,2]
[324976018,1714486234936,-635.908055,0.00019999,2]
[324976019,1714486234945,-151.0,0.00019999,2]
[324976020,1714486234954,-635.908055,0.00019999,2]
[324976021,1714486234964,-1004.275604,0.00019999,2]
[324976022,1714486234973,-186.357954,0.00019999,2]
[324976023,1714486234982,-122.09870487,0.00019999,2]
[324976024,1714486234995,-882.17689913,0.00019999,2]
[324976025,1714486235004,-186.357954,0.00019999,2]
[324976026,1714486235014,-151.0,0.00019999,2]
[324976027,1714486235024,-731.089941,0.00019999,2]
[324976028,1714486235034,-731.089941,0.00019999,2]
[324976029,1714486235043,-9139.35335309,0.0002,2]
[324976037,1714486239295,-155.58236345,0.00019799,2]
[324976039,1714486239305,-3494.79383655,0.00019899,2]
[324976052,1714486239480,-8326.27425167,0.00019899,2]
[324976053,1714486239491,-7707.28950174,0.0002,2]
[324976082,1714486243729,-157.384245,0.000199,2]
[324976084,1714486243739,-157.384245,0.000199,2]
[324976086,1714486243748,-157.384245,0.000199,2]
[324976087,1714486243758,-5608.747265,0.0002,2]
[324976117,1714486244307,-157.384245,0.000199,2]
[324976119,1714486244317,-8717.2919159,0.0002,2]
[324976381,1714486246852,-157.384245,0.000199,2]
[324976383,1714486246863,-310.15,0.0001999,3]
[324976385,1714486246872,-157.384245,0.00019999,2]
[324976387,1714486246882,-342.90586125,0.00019999,2]
[324976390,1714486246891,-8881.16273145,0.0002,2]
[324976482,1714486933212,379.51472742,9.999e-05,2]
[324976484,1714487064193,300.0,0.000225,30]
[324976533,1714487443423,-608.47002678,0.00016551,2]
[324976535,1714487443434,-1194.85720766,0.00016551,2]
[324976537,1714487443445,-74.65521111,0.00016551,2]
[324976539,1714487443455,-362.18450158,0.00016552,2]
[324976540,1714487443464,-2558.46028729,0.00016552,2]
[324976541,1714487452523,1091.62820512,9.999e-05,2]
[324976542,1714487454052,1203.40283935,9.999e-05,2]
[324976543,1714487483787,981.71883548,9.999e-05,2]
[324976544,1714487485493,154.81422293,9.999e-05,2]
[324976545,1714487498735,154.81422293,9.999e-05,2]
[324976546,1714487500587,468.95037876,9.999e-05,2]
[324976547,1714487501068,550.09434991,9.999e-05,2]
[324976548,1714487504974,1576.76485353,9.999e-05,2]
[324976549,1714487505523,1491.90719486,9.999e-05,2]
[324976550,1714487505744,154.81422293,9.999e-05,2]
[324976551,1714487506037,154.81422293,9.999e-05,2]
[324976552,1714487506284,196.34286714,9.999e-05,2]
[324976553,1714487507105,154.81422293,9.999e-05,2]
[324976554,1714487507851,154.81422293,9.999e-05,2]
[324976555,1714487509600,717.91087502,9.999e-05,2]
[324976556,1714487509754,154.81422293,9.999e-05,2]
[324976557,1714487510643,154.81422293,9.999e-05,2]
[324976558,1714487510921,718.63486199,9.999e-05,2]
[324976559,1714487511194,526.91179477,9.999e-05,2]
[324976560,1714487512507,700.60939635,9.999e-05,2]
[324976561,1714487512823,193.8405085,9.999e-05,2]
[324976562,1714487512867,154.81422293,9.999e-05,2]
[324976563,1714487513175,890.92384481,9.999e-05,2]
[324976564,1714487514807,154.81422293,9.999e-05,2]
[324976565,1714487515060,409.28352353,9.999e-05,2]
[324976566,1714487516565,154.81422293,9.999e-05,2]
[324976567,1714487518366,472.82364765,9.999e-05,2]
[324976568,1714487518495,154.81422293,9.999e-05,2]
[324976569,1714487519842,208.1175851,9.999e-05,2]
[324976570,1714487520068,235.83612481,9.999e-05,2]
[324976571,1714487520700,475.26109045,9.999e-05,2]
[324976572,1714487520751,154.81422293,9.999e-05,2]
[324976573,1714487522365,154.81422293,9.999e-05,2]
[324976574,1714487522405,154.81422293,9.999e-05,2]
[324976575,1714487522933,1621.94326618,9.999e-05,2]
[324976576,1714487525660,157.96527869,9.999e-05,2]
[324976577,1714487526344,551.01173019,9.999e-05,2]
[324976578,1714487527077,206.27151449,9.999e-05,2]
[324976579,1714487529607,2642.97301234,9.999e-05,2]
[324976580,1714487530375,154.81422293,9.999e-05,2]
[324976581,1714487535218,250.63531542,9.999e-05,2]
[324976582,1714487538567,280.79667621,9.999e-05,2]
[324976583,1714487558519,257.88073871,9.999e-05,2]
[324976584,1714487572185,154.81422293,9.999e-05,2]
[324976585,1714487585822,154.81422293,9.999e-05,2]
[324976586,1714487601230,154.81422293,9.999e-05,2]
[324976587,1714487606245,154.84886716,0.0001,2]
[324976588,1714487609007,154.81422293,9.999e-05,2]
[324976589,1714487618896,906.33088989,0.0001,2]
[324976590,1714487690691,186.32922869,9.999e-05,2]
[324976591,1714487692801,347.37024575,9.999e-05,2]
[324976592,1714487694052,1313.2113406,0.0001,2]
[324976593,1714487696509,460.20366438,9.999e-05,2]
[324976594,1714487699734,154.81422293,9.999e-05,2]
[324976595,1714487700829,154.81422293,9.999e-05,2]
[324976596,1714487744100,154.81422293,9.999e-05,2]
[324976597,1714487752354,362.33858089,9.999e-05,2]
[324976599,1714487761798,154.81422293,9.999e-05,2]
[324976600,1714487765593,1491.90719486,9.999e-05,2]
[324976601,1714487767259,526.91179477,9.999e-05,2]
[324976602,1714487769096,1091.62820512,9.999e-05,2]
[324976603,1714487769136,154.81422293,9.999e-05,2]
[324976604,1714487771105,409.28352353,9.999e-05,2]
[324976605,1714487772418,154.81422293,9.999e-05,2]
[324976606,1714487772600,154.81422293,9.999e-05,2]
[324976607,1714487772641,1203.40283935,9.999e-05,2]
[324976608,1714487781850,144.98706318,9.999e-05,2]
[324976609,1714487781876,9.82715975,9.999e-05,2]
[324976610,1714487783560,154.81422293,9.999e-05,2]
[324976611,1714487802440,981.71883548,9.999e-05,2]
[324976612,1714487802518,1576.76485353,9.999e-05,2]
[324976613,1714487803608,206.27151449,9.999e-05,2]
[324976614,1714487804794,196.34286714,9.999e-05,2]
[324976615,1714487806118,468.95037876,9.999e-05,2]
[324976616,1714487810635,235.83612481,9.999e-05,2]
[324976617,1714487810674,551.01173019,9.999e-05,2]
[324976618,1714487814102,193.8405085,9.999e-05,2]
[324976619,1714487815110,565.05764557,9.999e-05,2]
[324976620,1714487817473,434.01072699,9.999e-05,2]
[324976621,1714487817584,550.09434991,9.999e-05,2]
[324976622,1714487818174,157.96527869,9.999e-05,2]
[324976623,1714487818758,472.82364765,9.999e-05,2]
[324976624,1714487818912,513.49896732,9.999e-05,2]
[324976625,1714487820356,154.81422293,9.999e-05,2]
[324976626,1714487822849,522.12800672,9.999e-05,2]
[324976627,1714487829151,308.84790387,9.999e-05,2]
[324976628,1714487829730,890.92384481,9.999e-05,2]
[324976629,1714487837293,164.09674352,9.999e-05,2]
[324976631,1714487846029,154.81422293,9.999e-05,2]
[324976632,1714487851832,154.81422293,9.999e-05,2]
[324976633,1714487866339,250.0,9.965e-05,2]
[324976634,1714487873303,196.34286714,9.999e-05,2]
[324976635,1714487873646,12842.3671569,9.999e-05,2]
[324976636,1714487876182,206.27151449,9.999e-05,2]
[324976637,1714487877153,2626.7215223,9.999e-05,2]
[324976638,1714487877348,362.33858089,9.999e-05,2]
[324976639,1714487880970,981.71883548,9.999e-05,2]
[324976640,1714487882395,235.83612481,9.999e-05,2]
[324976641,1714487883045,154.81422293,9.999e-05,2]
[324976642,1714487888271,154.81422293,9.999e-05,2]
[324976643,1714487892093,550.09434991,9.999e-05,2]
[324976644,1714487896109,1091.62820512,9.999e-05,2]
[324976645,1714487897353,154.81422293,9.999e-05,2]
[324976646,1714487898600,1491.90719486,9.999e-05,2]
[324976647,1714487899355,522.12800672,9.999e-05,2]
[324976648,1714487899616,154.81422293,9.999e-05,2]
[324976649,1714487902140,154.81422293,9.999e-05,2]
[324976650,1714487902607,193.8405085,9.999e-05,2]
[324976651,1714487903614,565.05764557,9.999e-05,2]
[324976652,1714487904674,157.96527869,9.999e-05,2]
[324976653,1714487905246,475.26109045,9.999e-05,2]
[324976654,1714487905715,154.81422293,9.823e-05,2]
[324976655,1714487906718,1313.2113406,0.0001,2]
[324976656,1714487906994,460.20366438,9.999e-05,2]
[324976657,1714487914107,409.28352353,9.999e-05,2]
[324976658,1714487914235,890.92384481,9.999e-05,2]
[324976659,1714487920514,154.81422293,9.999e-05,2]
[324976660,1714487921716,202.27947885,9.822e-05,2]
[324976661,1714487921749,526.91179477,9.999e-05,2]
[324976662,1714487922287,683.32776114,9.999e-05,2]
[324976663,1714487924437,154.81422293,9.999e-05,2]
[324976664,1714487929749,154.81422293,9.999e-05,2]
[324976665,1714487939756,1361.170185,9.316e-05,2]
[324976666,1714487951429,154.81422293,9.999e-05,2]
[324976667,1714487951871,362.33858089,9.999e-05,2]
[324976668,1714487962624,154.81422293,9.999e-05,2]
[324976669,1714487966914,235.83612481,9.999e-05,2]
[324976670,1714487967306,981.71883548,9.999e-05,2]
[324976671,1714487973500,1621.94326618,9.999e-05,2]
[324976672,1714487981191,157.96527869,9.999e-05,2]
[324976673,1714487981505,460.20366438,9.999e-05,2]
[324976674,1714487981547,154.81422293,9.999e-05,2]
[324976675,1714487984808,409.28352353,9.999e-05,2]
[324976676,1714487984861,890.92384481,9.999e-05,2]
[324976677,1714487987333,314.81328207,9.999e-05,2]
[324976678,1714487995004,683.32776114,9.999e-05,2]
[324976679,1714488008369,154.81422293,9.999e-05,2]
[324976680,1714488012981,479.6718709,9.299e-05,2]
[324976681,1714488018759,154.81422293,9.999e-05,2]
[324976682,1714488020382,362.33858089,9.999e-05,2]
[324976683,1714488021265,6952.59605969,9.999e-05,2]
[324976684,1714488025854,363.95014905,9.999e-05,2]
[324976685,1714488028602,280.75978917,9.999e-05,2]
[324976686,1714488030675,308.25930969,9.999e-05,2]
[324976687,1714488035482,718.63486199,9.999e-05,2]
[324976688,1714488036751,155.02724318,9.999e-05,2]
[324976689,1714488036904,717.91087502,9.999e-05,2]
[324976690,1714488040607,1091.62820512,9.999e-05,2]
[324976691,1714488050678,325.0,0.000225,30]
[324976692,1714488053116,1203.40283935,9.999e-05,2]
[324976693,1714488055389,890.92384481,9.999e-05,2]
[324976694,1714488060071,154.81422293,9.999e-05,2]
[324976695,1714488083816,520.52223815,9.999e-05,2]
[324976696,1714488086854,583.61077291,9.999e-05,2]
[324976697,1714488086906,362.33858089,9.999e-05,2]
[324976698,1714488093035,700.60939635,9.999e-05,2]
[324976699,1714488114604,1511.7664589,9.282e-05,2]
[324976700,1714488169359,583.61077291,9.999e-05,2]
[324976701,1714488197864,981.71883548,9.999e-05,2]
[324976703,1714488222493,405.1662944,9.269e-05,2]
[324976704,1714488247881,583.61077291,9.999e-05,2]
[324976706,1714488274307,1954.39753014,0.0001,2]
[324976707,1714488284897,592.5207329,9.175e-05,2]
[324976708,1714488332131,2303.4324533,9.17e-05,2]
[324976709,1714488333271,25151.9066369,9.17e-05,2]
[324976710,1714488339524,24900.0,9.169e-05,2]
[324976711,1714488348791,12558.1332513,9.242e-05,2]
[324976712,1714488452908,180.02424353,9.242e-05,2]
[324976713,1714488466497,154.79876161,9.999e-05,2]
[324976714,1714488472719,2626.7215223,9.999e-05,2]
[324976715,1714488481949,154.79876161,9.999e-05,2]